bitfinex-derivatives/quotes_SOLF0:USTF0_20260202
["timestamp","ask_amount","ask_price","bid_price","bid_amount"]
[1770020308688,16.04939527,101.8,101.72,137.7908]
[1770020308689,58.64390564,101.8,101.72,137.7908]
[1770020309983,144.86519527,101.82,101.72,137.7908]
[1770020309984,0.06256937,101.77,101.73,137.7776]
[1770020310184,58.64329577,101.82,101.74,137.763]
[1770020310583,58.64329577,101.82,101.75,137.7493]
[1770020310791,59.43441003,101.85,101.77,137.7218]
[1770020310989,66.6323053,101.88,101.79,137.6958]
[1770020311491,59.4335761,101.91,101.83,137.6417]
[1770020311685,59.4335761,101.93,101.83,137.6417]
[1770020311992,196.9417761,101.93,101.83,137.6417]
[1770020312190,196.9417761,101.93,101.82,529.6544]
[1770020312191,204.29420186,101.92,101.82,529.6544]
[1770020312392,59.57440659,101.91,101.82,529.6544]
[1770020312684,59.57440659,101.91,101.8,529.6721]
[1770020312685,66.77230186,101.9,101.8,529.6721]
[1770020312890,59.57440659,101.87,101.8,392.0]
[1770020313083,59.57440659,101.87,101.79,137.6925]
[1770020313284,59.57440659,101.87,101.79,8.8514]
[1770020313593,59.57440659,101.87,101.77,421.46]
[1770020313594,59.57440659,101.87,101.77,529.7229]
[1770020313784,59.57440659,101.87,101.78,137.7092]
[1770020314187,197.16370659,101.87,101.78,8.8523]
[1770020314386,60.09927847,101.86,101.76,529.6858]
[1770020314586,67.29717374,101.91,101.82,137.6553]
[1770020314793,60.09927847,101.89,101.8,146.5283]
[1770020315193,60.09927847,101.89,101.81,137.6645]
[1770020316091,60.09927847,101.89,101.81,8.8495]
[1770020316593,60.21810977,101.88,101.79,137.6962]
[1770020316893,60.21810977,101.88,101.8,146.5303]
[1770020317186,76.25679683,101.91,101.81,137.6679]
[1770020317488,7.19789527,101.93,101.85,137.6145]
[1770020317691,60.21710156,101.94,101.86,137.6004]
[1770020317887,60.21710156,101.94,101.86,146.4458]
[1770020318093,60.21710156,101.94,101.86,8.8454]
[1770020318294,60.25504872,101.93,101.84,137.6286]
[1770020318596,60.25504872,101.93,101.89,0.06178199]
[1770020319187,60.25504872,101.93,101.84,137.6286]
[1770020319989,60.25504872,101.93,101.85,146.4568]
[1770020320186,60.30609195,101.98,101.89,137.5567]
[1770020320492,60.30609195,101.98,101.9,146.3889]
[1770020320887,60.30609195,102.01,101.93,137.5047]
[1770020321090,60.30609195,102.01,101.9,137.547]
[1770020321091,60.30510609,102.0,101.9,137.547]
[1770020321296,67.50300136,101.99,101.9,137.547]
[1770020321503,0.06639834,101.98,101.9,137.547]
[1770020321702,60.37150443,101.98,101.9,146.3896]
[1770020321897,60.30510609,101.98,101.9,137.5474]
[1770020322106,76.33620136,102.01,101.92,137.5175]
[1770020322303,67.50300136,102.01,101.92,137.5175]
[1770020322604,7.19789527,102.05,101.96,137.4657]
[1770020322801,60.43925668,102.06,101.98,137.4338]
[1770020323205,60.47183036,102.08,101.99,137.4246]
[1770020323402,60.47183036,102.06,101.97,137.4495]
[1770020323802,60.47183036,102.06,101.96,146.3032]
[1770020324200,60.87658403,102.04,101.95,137.4683]
[1770020324400,60.87658403,102.04,101.96,137.4662]
[1770020324606,68.0744793,102.07,102.0,0.06524621]
[1770020325002,60.87658403,102.07,102.0,137.47694621]
[1770020325207,60.87658403,102.07,101.99,137.425]
[1770020325403,68.0744793,102.07,101.98,8.835]
[1770020325604,68.0744793,102.07,101.98,146.2746]
[1770020325903,198.20989808,102.06,101.96,8.8369]
[1770020326206,68.07339335,102.05,101.96,8.8369]
[1770020326607,198.25527527,102.04,101.94,537.9605]
[1770020327209,60.89537527,102.04,101.94,537.9605]
[1770020327398,60.89537527,102.04,101.95,146.3168]
[1770020327810,61.42803581,102.03,101.94,529.122]
[1770020328011,0.06333176,102.0,101.94,529.122]
[1770020328403,0.06333176,102.0,101.94,537.9608]
[1770020329107,0.06333176,102.0,101.94,400.4788]
[1770020329507,0.06333176,102.0,101.94,391.64]
[1770020330710,0.06333176,102.0,101.94,529.1333]
[1770020330914,0.06333176,102.0,101.95,137.4796]
[1770020331214,61.42803581,102.03,101.95,137.4796]
[1770020331215,68.57168226,102.08,101.99,137.4251]
[1770020331417,61.37122558,102.08,102.01,137.3935]
[1770020331612,61.37122558,102.11,102.03,137.3721]
[1770020331915,61.37122558,102.11,102.03,8.8309]
[1770020332115,198.63882558,102.11,102.0,137.4073]
[1770020332307,68.493484,102.1,102.01,146.2292]
[1770020332506,61.29302732,102.1,102.06,0.06364726]
[1770020333315,61.29302732,102.1,102.01,8.8324]
[1770020333518,61.26012243,102.09,102.01,8.8324]
[1770020333821,205.71347911,102.12,102.02,146.217]
[1770020334020,205.71347911,102.12,102.04,137.3523]
[1770020334021,68.46057911,102.12,102.04,137.3523]
[1770020334219,61.77472141,102.15,102.06,137.3318]
[1770020334422,137.1832,102.18,102.05,137.3445]
[1770020334423,68.97517809,102.18,102.1,137.2767]
[1770020334619,68.97517809,102.18,102.09,146.1161]
[1770020334816,61.77472141,102.16,102.08,137.3041]
[1770020335119,61.77472141,102.16,102.07,146.146]
[1770020335319,61.77472141,102.16,102.08,137.3046]
[1770020335519,61.77472141,102.16,102.08,8.8267]
[1770020335720,61.77472141,102.16,102.06,137.3306]
[1770020335916,0.06213867,102.13,102.06,137.3306]
[1770020336613,62.0932598,102.14,102.06,137.3306]
[1770020336813,62.0932598,102.14,102.06,8.8281]
[1770020337622,0.06355442,102.11,102.05,137.3456]
[1770020337820,0.06355442,102.11,102.03,528.6826]
[1770020338015,62.15559213,102.11,102.03,528.6826]
[1770020338215,63.13831563,102.1,102.03,391.32]
[1770020338518,70.33877231,102.09,102.01,137.3989]
[1770020338722,0.06367477,102.08,102.0,137.4122]
[1770020338912,0.06367477,102.08,102.01,137.3948]
[1770020339323,70.33877231,102.09,102.01,137.3948]
[1770020339522,137.2557,102.12,102.02,137.3825]
[1770020339523,71.96058735,102.12,102.02,137.3825]
[1770020339726,70.33734403,102.12,102.02,137.3825]
[1770020340024,70.33734403,102.1,102.0,137.4122]
[1770020340220,0.06410758,102.08,102.01,146.231]
[1770020340422,62.75954285,102.14,101.99,391.22]
[1770020340726,360.9,102.18,101.99,391.22]
[1770020340727,62.79159664,102.15,102.05,137.3427]
[1770020340925,62.79159664,102.13,102.03,137.3635]
[1770020341121,69.99205332,102.12,102.02,146.2055]
[1770020341327,69.99205332,102.12,102.04,137.3563]
[1770020341627,69.99205332,102.12,102.04,8.8296]
[1770020341925,69.99205332,102.12,102.07,0.06320894]
[1770020342126,69.99205332,102.12,102.03,137.3719]
[1770020342527,69.99205332,102.12,102.04,137.3587]
[1770020342826,69.99205332,102.12,102.03,137.3719]
[1770020343230,61.49890762,102.11,102.01,137.3899]
[1770020343522,7.20045668,102.1,102.02,137.3852]
[1770020343729,61.49890762,102.11,102.03,137.369]
[1770020344126,61.49890762,102.11,102.04,8.8298]
[1770020344428,61.58303895,102.16,102.09,137.2876]
[1770020344631,61.58303895,102.16,102.09,8.8254]
[1770020344829,61.58303895,102.16,102.08,137.2937]
[1770020345027,61.58303895,102.16,102.07,137.3141]
[1770020345230,68.81542708,102.15,102.07,137.3141]
[1770020345432,61.6149704,102.15,102.08,137.3047]
[1770020345931,61.61396058,102.18,102.08,137.3015]
[1770020346228,61.61396058,102.18,102.09,137.2903]
[1770020346429,61.61396058,102.18,102.1,0.06585041]
[1770020346829,61.61396058,102.18,102.09,8.8254]
[1770020347433,61.61396058,102.18,102.09,146.1153]
[1770020347731,207.60376058,102.18,102.12,0.06376863]
[1770020347932,62.02780665,102.17,102.12,0.06376863]
[1770020348329,62.02780665,102.17,102.08,137.3015]
[1770020348330,144.41255668,102.15,102.05,137.3434]
[1770020348526,409.11487423,102.17,102.07,137.3173]
[1770020348724,69.19533091,102.17,102.08,137.3037]
[1770020348924,61.99487423,102.16,102.07,8.8271]
[1770020349122,61.99487423,102.14,102.05,137.3445]
[1770020349733,61.99383817,102.16,102.07,137.3166]
[1770020349937,61.99383817,102.15,102.07,137.3177]
[1770020350240,398.22045668,102.17,102.09,137.2915]
[1770020350534,69.35618225,102.17,102.09,137.2915]
[1770020350831,62.15572557,102.17,102.09,137.2915]
[1770020351835,69.35618225,102.17,102.08,146.1314]
[1770020352132,0.06219249,102.14,102.08,146.1314]
[1770020352533,0.06219249,102.14,102.08,8.8264]
[1770020353238,0.06219249,102.14,102.06,146.1603]
[1770020353633,0.06219249,102.14,102.07,137.3182]
[1770020353828,67.57125649,102.16,102.07,146.1454]
[1770020354436,60.35321097,102.13,102.02,528.3986]
[1770020354637,67.55366765,102.1,102.0,137.4044]
[1770020354837,60.35321097,102.09,102.0,137.4044]
[1770020355136,60.35321097,102.09,102.01,8.8323]
[1770020355940,0.06368131,102.06,102.01,8.8323]
[1770020356541,0.06368131,102.06,102.01,146.2294]
[1770020356738,0.06368131,102.06,102.02,8.8314]
[1770020357144,0.06368131,102.06,102.0,137.4044]
[1770020357340,0.06368131,102.06,102.01,8.8324]
[1770020357540,595.5154954,102.12,102.02,137.3849]
[1770020357942,597.13873872,102.12,102.03,8.8308]
[1770020358138,59.91298933,102.1,102.0,137.4044]
[1770020358338,59.91298933,102.1,101.98,137.4281]
[1770020358339,137.308,102.08,101.97,503.6438]
[1770020358540,7.20045668,102.05,101.97,8.8357]
[1770020359444,7.20045668,102.05,101.98,8.8351]
[1770020359742,59.912437,102.09,102.0,137.4122]
[1770020359940,59.912437,102.09,102.0,137.47699384]
[1770020360245,59.912437,102.09,102.02,137.3858]
[1770020360447,67.06207176,102.12,102.03,137.3724]
[1770020360642,67.06207176,102.12,102.04,8.8299]
[1770020361148,59.86161508,102.15,102.07,137.3143]
[1770020361347,59.86161508,102.15,102.08,137.3052]
[1770020362043,59.86161508,102.15,102.09,8.8256]
[1770020364044,59.86161508,102.15,102.11,0.06204985]
[1770020364243,59.86161508,102.15,102.07,137.3143]
[1770020364244,66.55674343,102.14,102.05,137.3448]
[1770020364449,0.06181602,102.13,102.05,137.3448]
[1770020364844,59.35628675,102.13,102.05,137.3448]
[1770020365041,59.35628675,102.13,102.04,146.1861]
[1770020365241,59.35628675,102.13,102.05,137.3437]
[1770020365442,59.35628675,102.13,102.06,137.3301]
[1770020366446,59.35628675,102.13,102.07,8.8273]
[1770020366647,59.35628675,102.13,102.05,137.3437]
[1770020367443,59.35628675,102.13,102.06,8.8282]
[1770020368052,59.35628675,102.13,102.04,137.3565]
[1770020368547,2.45026321,102.12,102.04,137.3565]
[1770020368749,59.35628675,102.13,102.05,146.1746]
[1770020368942,59.35628675,102.13,102.05,8.8291]
[1770020369453,59.35628675,102.13,102.06,8.8282]
[1770020371248,2.45012127,102.12,102.06,8.8282]
[1770020371451,59.35628675,102.13,102.06,8.8282]
[1770020371648,59.06649386,102.09,102.01,11.96057153]
[1770020371849,59.06649386,102.09,102.0,11.96057153]
[1770020372048,2.45109199,102.08,102.0,137.4121]
[1770020372351,67.89249386,102.09,102.01,8.8325]
[1770020373744,2.4511227,102.08,102.01,8.8325]
[1770020373943,67.89249386,102.09,102.01,8.8325]
[1770020374355,65.88652125,102.12,102.03,137.3712]
[1770020374545,65.88652125,102.12,102.02,274.761]
[1770020374546,137.2668,102.11,102.01,149.35847153]
[1770020374749,65.88652125,102.1,102.01,137.3979]
[1770020374946,0.06236099,102.09,102.02,8.8316]
[1770020375547,65.88652125,102.1,102.03,8.8306]
[1770020376053,58.68606457,102.1,102.03,8.8306]
[1770020378157,67.51136457,102.1,102.02,11.96057153]
[1770020378459,74.71182125,102.1,102.02,11.96057153]
[1770020379360,57.96639324,102.09,102.02,20.79237153]
[1770020379763,66.79239324,102.09,102.02,11.96057153]
[1770020380054,202.47554992,102.08,102.0,11.96057153]
[1770020380253,57.96639324,102.07,102.0,11.96057153]
[1770020380555,57.96639324,102.07,101.99,11.96057153]
[1770020380752,66.76040249,102.06,101.99,11.96057153]
[1770020380947,66.76040249,102.06,101.98,11.96057153]
[1770020381354,57.93164179,102.09,102.03,137.3685]
[1770020381954,7.20045668,102.12,102.03,137.3685]
[1770020382158,66.75544179,102.12,102.04,8.8301]
[1770020382359,57.93164179,102.12,102.04,137.3559]
[1770020382954,57.93164179,102.12,102.06,8.8282]
[1770020383149,57.92834741,102.15,102.06,137.3318]
[1770020383354,57.92834741,102.15,102.08,137.3033]
[1770020383963,57.92834741,102.15,102.07,8.827]
[1770020384256,57.92834741,102.15,102.07,137.3186]
[1770020384750,57.92834741,102.15,102.09,8.8256]
[1770020385162,57.92834741,102.15,102.07,137.3186]
[1770020385762,57.92834741,102.15,102.08,8.8265]
[1770020387363,57.56319974,102.18,102.11,137.265]
[1770020388269,0.06254461,102.16,102.12,137.2505]
[1770020388465,58.64817237,102.21,102.13,137.2373]
[1770020389063,65.84862905,102.21,102.11,149.22557153]
[1770020389267,58.64817237,102.21,102.12,137.2514]
[1770020389463,58.64817237,102.21,102.13,8.8219]
[1770020389866,58.64817237,102.21,102.15,0.06419804]
[1770020391965,65.82897904,102.2,102.11,158.04917153]
[1770020392162,65.82897904,102.2,102.13,137.2378]
[1770020392163,58.62852236,102.2,102.13,137.2378]
[1770020392363,0.06182434,102.19,102.13,137.2378]
[1770020392763,58.59194812,102.23,102.16,146.0163]
[1770020392966,58.59194812,102.23,102.16,146.0121]
[1770020394366,58.59194812,102.23,102.16,8.8195]
[1770020394766,58.74305982,102.32,102.19,137.1549]
[1770020394969,58.74305982,102.3,102.21,137.1293]
[1770020395265,58.74305982,102.3,102.21,8.8149]
[1770020395467,58.71060874,102.28,102.19,527.9149]
[1770020395672,58.71060874,102.27,102.19,390.76]
[1770020395868,58.77438159,102.27,102.19,390.76]
[1770020396266,58.71060874,102.27,102.19,390.76]
[1770020396571,58.71060874,102.27,102.18,137.1666]
[1770020396771,58.71060874,102.27,102.2,137.1382]
[1770020396973,59.2387859,102.3,102.22,137.1149]
[1770020397169,0.06355766,102.24,102.23,137.1031]
[1770020397474,59.2387859,102.3,102.24,137.0897]
[1770020398167,59.27028591,102.33,102.25,137.0765]
[1770020398569,66.44174578,102.33,102.24,145.9023]
[1770020398879,530.42828636,102.35,102.23,137.1032]
[1770020398880,8.636e-05,102.35,102.31,136.9937]
[1770020399063,195.83972581,102.45,102.34,136.9524]
[1770020399261,59.0258805,102.44,102.36,136.9267]
[1770020399465,59.0258805,102.44,102.37,136.9142]
[1770020400066,59.0258805,102.44,102.35,136.9406]
[1770020400264,58.83258641,102.42,102.33,136.9692]
[1770020400463,58.8014647,102.4,102.31,136.9873]
[1770020400669,66.03686794,102.42,102.32,136.9815]
[1770020400873,66.03686794,102.42,102.3,136.9981]
[1770020400874,58.8014647,102.39,102.3,136.9981]
[1770020401069,58.8014647,102.38,102.28,390.58]
[1770020401379,58.80124459,102.33,102.24,137.0893]
[1770020401667,195.85014459,102.28,102.17,137.1785]
[1770020401862,195.88154459,102.25,102.14,137.217]
[1770020402063,58.80124459,102.21,102.11,527.7528]
[1770020402267,58.80124459,102.21,102.09,146.1111]
[1770020402268,58.39824194,102.19,102.09,146.1111]
[1770020402567,58.39824194,102.2,102.11,137.2628]
[1770020402767,58.39824194,102.2,102.12,137.2439]
[1770020402973,58.39824194,102.17,102.07,527.7517]
[1770020403167,58.39824194,102.17,102.07,390.44]
[1770020403371,58.39824194,102.17,102.04,137.3587]
[1770020403372,58.39806843,102.13,102.04,137.3587]
[1770020403574,58.39806843,102.13,102.04,137.3588]
[1770020403879,58.39806843,102.13,102.06,137.3305]
[1770020404370,56.25010413,102.16,102.07,137.3178]
[1770020404968,0.06265427,102.13,102.07,137.3178]
[1770020405277,56.31280874,102.13,102.05,137.3421]
[1770020405572,464.57594821,102.19,102.1,137.2765]
[1770020405775,56.28148161,102.18,102.1,137.2761]
[1770020405974,56.28148161,102.18,102.1,137.2781]
[1770020406168,56.28148161,102.17,102.07,527.7762]
[1770020406366,56.28148161,102.17,102.07,390.46]
[1770020406367,53.17577314,102.15,102.07,390.46]
[1770020407376,53.17612975,102.18,102.08,137.3047]
[1770020407573,53.17612975,102.17,102.09,137.2909]
[1770020407876,443.35335245,102.2,102.1,137.2773]
[1770020408578,52.83373416,102.16,102.06,137.3283]
[1770020408778,52.83373416,102.16,102.09,137.2915]
[1770020408979,52.83373416,102.16,102.08,137.3018]
[1770020409770,52.83373416,102.16,102.09,137.2909]
[1770020410175,52.83373416,102.16,102.08,137.3018]
[1770020410371,52.83373416,102.16,102.07,146.1435]
[1770020410575,52.83373416,102.16,102.06,527.8683]
[1770020410878,52.87427097,102.12,102.03,137.3624]
[1770020411576,52.87427097,102.12,102.03,137.3713]
[1770020411779,52.87427097,102.12,102.04,137.3587]
[1770020411980,52.87463622,102.15,102.05,137.345]
[1770020412179,52.87463622,102.14,102.05,137.345]
[1770020412478,52.87463622,102.14,102.06,137.3273]
[1770020412682,52.87463622,102.14,102.07,137.3126]
[1770020412882,390.62,102.16,102.08,137.3004]
[1770020413078,53.476138,102.16,102.07,137.3126]
[1770020413276,53.476138,102.16,102.06,137.3273]
[1770020413478,53.47643987,102.12,102.03,137.3625]
[1770020413677,53.47643987,102.1,102.01,390.66]
[1770020413878,53.47643987,102.09,102.0,137.4093]
[1770020414584,53.47643987,102.09,101.99,137.4188]
[1770020414782,53.33279289,102.08,101.98,137.4311]
[1770020415174,190.65220075,102.07,101.97,528.1021]
[1770020415380,53.33310075,102.05,101.96,137.4663]
[1770020415777,53.33310075,102.1,102.01,137.397]
[1770020417086,53.4084399,102.07,101.99,390.7]
[1770020417880,53.4084399,102.07,101.98,146.2731]
[1770020418384,53.4084399,102.07,101.99,137.4251]
[1770020418780,53.4202724,102.06,101.97,528.2106]
[1770020418984,53.4202724,102.06,101.97,528.2116]
[1770020419488,53.42055898,102.05,101.95,137.4795]
[1770020419683,53.42055898,102.03,101.93,528.3351]
[1770020419888,53.42055898,102.02,101.94,137.4933]
[1770020420292,53.42055898,102.02,101.95,137.476]
[1770020420482,53.42055898,102.02,101.94,137.4933]
[1770020420686,53.42055898,102.02,101.89,412.652]
[1770020420687,53.44131674,102.01,101.91,137.5339]
[1770020420883,53.44131674,101.98,101.89,528.419]
[1770020421085,53.44131674,101.98,101.89,8.843]
[1770020421289,53.44159506,101.97,101.87,137.5882]
[1770020421588,53.44159506,101.97,101.85,528.5061]
[1770020421589,190.93639506,101.94,101.85,390.9]
[1770020421889,53.44159506,101.94,101.86,137.5997]
[1770020422183,53.44159506,101.94,101.85,146.4542]
[1770020422388,53.44159506,101.94,101.84,137.6184]
[1770020422389,53.5521602,101.93,101.84,390.94]
[1770020422589,17.86579374,101.95,101.86,137.601]
[1770020422787,53.5521602,101.96,101.87,137.5851]
[1770020422985,53.5521602,101.96,101.86,137.6013]
[1770020423388,53.5521602,101.96,101.86,146.4471]
[1770020423389,191.0204602,101.96,101.86,146.4471]
[1770020423589,191.0204602,101.96,101.85,391.0]
[1770020423590,53.55242317,101.92,101.85,391.0]
[1770020423787,53.55242317,101.92,101.85,137.6134]
[1770020423993,17.86579374,101.95,101.88,137.5737]
[1770020423994,53.55242317,101.95,101.88,137.5737]
[1770020424185,53.55242317,101.99,101.9,137.5467]
[1770020424487,53.55242317,101.99,101.92,137.5195]
[1770020424786,53.55242317,101.99,101.91,137.5338]
[1770020424988,53.55242317,101.99,101.92,137.5198]
[1770020425487,53.55242317,101.99,101.9,146.3888]
[1770020425892,53.55242317,101.99,101.92,137.5205]
[1770020426391,53.55242317,101.99,101.9,137.5467]
[1770020426593,53.55242317,101.99,101.91,137.534]
[1770020426992,53.55242317,101.99,101.92,146.3603]
[1770020427194,200.11646213,102.03,101.93,137.5062]
[1770020427391,53.90416213,102.03,101.94,137.4853]
[1770020427590,53.90416213,102.03,101.95,137.4738]
[1770020427789,53.90416213,102.03,101.97,0.06289883]
[1770020427993,53.90416213,102.03,101.92,391.16]
[1770020427994,200.12183644,102.0,101.92,391.16]
[1770020428186,54.08051296,101.98,101.87,137.5767]
[1770020428492,54.08051296,101.98,101.9,137.5448]
[1770020429396,54.08051296,101.98,101.9,146.3868]
[1770020429797,0.06287027,101.95,101.88,146.4178]
[1770020429997,0.06287027,101.95,101.89,137.561]
[1770020430392,62.91601296,101.98,101.89,137.561]
[1770020430701,62.91601296,101.98,101.87,391.2]
[1770020430702,54.27611215,101.95,101.87,391.2]
[1770020430903,54.27611215,101.93,101.84,137.6172]
[1770020431098,54.27611215,101.93,101.83,146.4807]
[1770020431293,63.11641215,101.93,101.84,137.6276]
[1770020431488,54.27611215,101.93,101.85,137.6142]
[1770020431689,191.74359579,101.96,101.86,146.4462]
[1770020432288,54.27629579,101.96,101.86,146.4462]
[1770020432498,191.74409579,101.96,101.86,146.4462]
[1770020432797,0.06393401,101.92,101.85,137.6142]
[1770020433295,54.36548001,101.95,101.86,137.6008]
[1770020433496,191.84898001,101.95,101.85,137.6142]
[1770020433798,63.20398001,101.95,101.86,146.447]
[1770020433996,200.68738001,101.95,101.84,137.6276]
[1770020434198,54.42114298,101.92,101.82,137.6516]
[1770020434396,54.42114298,101.91,101.82,137.6516]
[1770020434597,191.96934298,101.9,101.81,611.57250761]
[1770020434795,54.42114298,101.89,101.81,749.24060761]
[1770020434990,155.39399374,101.92,101.81,749.24060761]
[1770020434991,0.06387611,101.88,101.81,749.24060761]
[1770020435195,0.06387611,101.88,101.81,366.75030761]
[1770020435393,0.06387611,101.88,101.83,137.6419]
[1770020435597,54.42114298,101.91,101.82,137.6548]
[1770020436098,54.42114298,101.91,101.83,8.848]
[1770020436398,53.99765326,101.93,101.83,146.4899]
[1770020436698,53.99765326,101.92,101.83,146.4899]
[1770020437599,53.99765326,101.92,101.84,146.475]
[1770020438399,8.8393,101.94,101.85,8.8463]
[1770020438598,146.3347,101.94,101.85,8.8463]
[1770020438799,8.8393,101.94,101.85,8.8463]
[1770020439101,54.08887203,101.91,101.83,8.8481]
[1770020439596,191.63734957,101.9,101.82,391.44]
[1770020439895,0.06399618,101.88,101.82,529.0951]
[1770020440898,0.06399618,101.88,101.83,146.4887]
[1770020441405,0.06399618,101.88,101.84,8.8472]
[1770020441795,0.06399618,101.88,101.84,146.4754]
[1770020441996,54.08346788,101.93,101.85,8.8463]
[1770020442501,200.55342674,101.96,101.86,137.6004]
[1770020442798,54.23912674,101.92,101.82,391.44]
[1770020443003,54.23912674,101.92,101.84,137.6276]
[1770020443304,54.23912674,101.92,101.85,8.8463]
[1770020443502,54.23912674,101.92,101.83,137.6423]
[1770020443699,54.23912674,101.92,101.84,137.6269]
[1770020444302,54.23912674,101.92,101.85,8.8464]
[1770020444903,7.21084929,101.94,101.85,8.8464]
[1770020444904,7.21084929,101.94,101.86,8.8454]
[1770020445104,54.53617497,101.95,101.86,146.4472]
[1770020445304,54.53631475,101.92,101.83,137.6423]
[1770020445906,54.53631475,101.92,101.84,146.4755]
[1770020446101,54.53631475,101.92,101.84,8.8474]
[1770020446506,54.53631475,101.92,101.82,529.0951]
[1770020446507,54.53631475,101.92,101.82,537.9438]
[1770020446808,54.53631475,101.92,101.83,137.6409]
[1770020447105,63.37751475,101.92,101.83,8.8481]
[1770020447706,8.8417,101.91,101.83,8.8481]
[1770020447902,63.60406084,101.91,101.83,8.8481]
[1770020448101,192.29916084,101.91,101.86,0.06251362]
[1770020448306,54.76236084,101.91,101.86,0.06251362]
[1770020448709,8.8425,101.9,101.86,0.06251362]
[1770020449003,54.76248091,101.9,101.86,0.06251362]
[1770020449308,54.76248091,101.9,101.82,391.44]
[1770020449309,54.7313428,101.89,101.82,391.44]
[1770020449607,192.2936428,101.89,101.79,146.5357]
[1770020449803,54.7313428,101.88,101.79,8.8513]
[1770020450207,192.3070428,101.88,101.79,8.8513]
[1770020450403,54.75884902,101.87,101.79,8.8513]
[1770020451408,54.75884902,101.87,101.8,8.8508]
[1770020453607,0.06307189,101.85,101.8,8.8508]
[1770020454210,0.06307189,101.85,101.81,8.8498]
[1770020454513,0.06307189,101.85,101.81,137.6687]
[1770020454700,0.06307189,101.85,101.8,137.6799]
[1770020454902,0.06307189,101.85,101.81,8.8499]
[1770020455704,0.06307189,101.85,101.79,137.6955]
[1770020456513,0.06307189,101.85,101.78,400.4722]
[1770020456809,192.43957843,101.85,101.77,222.53361941]
[1770020457010,192.38700654,101.84,101.75,8.8548]
[1770020457307,54.75770654,101.83,101.75,8.8548]
[1770020458005,61.9756097,101.83,101.75,8.8548]
[1770020458214,0.06198221,101.8,101.75,8.8548]
[1770020459307,54.9063332,101.8,101.71,149.52682592]
[1770020459506,54.84435099,101.79,101.69,541.30882592]
[1770020459710,54.84435099,101.79,101.67,17.55843749]
[1770020459711,54.84435099,101.76,101.67,137.8578]
[1770020459904,7.21790316,101.75,101.68,8.8612]
[1770020460107,7.21790316,101.75,101.66,137.8622]
[1770020460410,54.84435099,101.76,101.69,8.8603]
[1770020461209,54.84893611,101.79,101.72,137.7868]
[1770020461412,54.84893611,101.79,101.71,137.7932]
[1770020461615,54.84893611,101.79,101.69,137.8215]
[1770020461616,70.92003645,101.78,101.69,146.6816]
[1770020461810,62.06693645,101.76,101.67,529.6477]
[1770020462211,54.89572759,101.75,101.66,137.8636]
[1770020462412,54.89572759,101.75,101.67,146.7197]
[1770020462612,62.11363075,101.78,101.69,137.8296]
[1770020462809,54.89572759,101.78,101.7,137.8165]
[1770020463116,54.89572759,101.81,101.73,137.7776]
[1770020463313,54.89572759,101.81,101.72,137.7912]
[1770020463514,54.89572759,101.81,101.73,8.8568]
[1770020463714,54.89572759,101.81,101.73,146.6336]
[1770020463910,418.75372337,101.84,101.75,137.7501]
[1770020464114,192.53882021,101.83,101.73,137.7768]
[1770020464414,54.94019171,101.81,101.72,137.789]
[1770020464618,54.94019171,101.81,101.73,8.8568]
[1770020464814,54.94019171,101.81,101.72,137.7899]
[1770020465215,54.94019171,101.81,101.73,137.7745]
[1770020465413,54.94019171,101.81,101.73,8.8567]
[1770020465718,54.94028004,101.8,101.71,529.7239]
[1770020465921,54.94028004,101.8,101.72,146.6483]
[1770020466114,54.94028004,101.8,101.72,8.8576]
[1770020466412,54.94028004,101.8,101.72,146.6474]
[1770020466816,64.20704842,101.83,101.74,137.7639]
[1770020467018,55.35804842,101.83,101.75,137.7427]
[1770020467317,55.35804842,101.83,101.76,137.7361]
[1770020467510,55.35804842,101.83,101.77,8.8534]
[1770020467711,55.6490914,101.82,101.74,392.0]
[1770020467914,62.86699456,101.82,101.74,392.0]
[1770020468316,55.64914258,101.81,101.73,8.8566]
[1770020468713,55.64914258,101.81,101.71,529.8131]
[1770020469111,55.64914258,101.8,101.71,538.6714]
[1770020469318,0.06294465,101.77,101.71,538.6714]
[1770020469709,0.06294465,101.77,101.69,538.6993]
[1770020469915,0.06294465,101.77,101.69,529.8393]
[1770020470120,0.06294465,101.77,101.72,146.6475]
[1770020470318,7.21790316,101.8,101.72,146.6475]